fUSD/lending_fUSD_20250115
["ID","MTS","AMOUNT","RATE_DAILY","PERIOD"]
[349064814,1736956304712,-500.0,0.00053698,120]
[349064815,1736956304727,-542.48,0.00053698,120]
[349064816,1736956304739,-500.0,0.00053698,120]
[349064817,1736956304754,-500.0,0.00053698,120]
[349064818,1736956304767,-500.0,0.00053698,120]
[349064819,1736956304778,-500.0,0.00053698,120]
[349064820,1736956304790,-500.0,0.00053698,120]
[349064821,1736956304803,-1078.53,0.00053698,120]
[349064822,1736956304816,-786.0,0.00053698,120]
[349064823,1736956304827,-500.0,0.00053698,120]
[349064824,1736956304839,-500.0,0.00053698,120]
[349064825,1736956304851,-500.0,0.00053698,120]
[349064826,1736956304863,-500.0,0.00053698,120]
[349064827,1736956304874,-500.0,0.00053698,120]
[349064828,1736956304887,-500.0,0.00053698,120]
[349064829,1736956304899,-776.98,0.00053698,120]
[349064830,1736956304911,-500.0,0.00053698,120]
[349064831,1736956304923,-500.0,0.00053698,120]
[349064832,1736956304936,-500.0,0.00053698,120]
[349064833,1736956304947,-1023.29,0.00053698,120]
[349064834,1736956304958,-767.75,0.00053698,120]
[349064835,1736956304973,-1008.37,0.00053698,120]
[349064836,1736956304985,-500.0,0.00053698,120]
[349064837,1736956304996,-500.0,0.00053698,120]
[349064838,1736956305007,-500.0,0.00053698,120]
[349064839,1736956305020,-500.0,0.00053698,120]
[349064840,1736956305031,-500.0,0.00053698,120]
[349064841,1736956305044,-500.0,0.00053698,120]
[349064842,1736956305057,-685.34,0.00053698,120]
[349064843,1736956305072,-500.0,0.00053698,120]
[349064844,1736956305087,-500.0,0.00053698,120]
[349064845,1736956305099,-669.64,0.00053698,120]
[349064846,1736956305111,-500.0,0.00053698,120]
[349064847,1736956305123,-500.0,0.00053698,120]
[349064848,1736956305136,-956.49,0.00053698,120]
[349064849,1736956305150,-500.0,0.00053698,120]
[349064850,1736956305162,-500.0,0.00053698,120]
[349064851,1736956305175,-500.0,0.00053698,120]
[349064852,1736956305187,-500.0,0.00053698,120]
[349064853,1736956305199,-500.0,0.00053698,120]
[349064854,1736956305211,-500.0,0.00053698,120]
[349064855,1736956305226,-500.0,0.00053698,120]
[349064856,1736956305239,-500.0,0.00053698,120]
[349064857,1736956305251,-500.0,0.00053698,120]
[349064858,1736956305263,-500.0,0.00053698,120]
[349064859,1736956305276,-500.0,0.00053698,120]
[349064860,1736956305288,-1034.79,0.00053698,120]
[349064861,1736956305300,-569.66,0.00053698,120]
[349064862,1736956305312,-500.0,0.00053698,120]
[349064863,1736956305325,-500.0,0.00053698,120]
[349064864,1736956305338,-578.02,0.00053698,120]
[349064865,1736956305350,-1272.04,0.00053698,120]
[349064866,1736956305362,-500.0,0.00053698,120]
[349064867,1736956305374,-500.0,0.00053698,120]
[349064868,1736956305386,-500.0,0.00053698,120]
[349064869,1736956305399,-666.66,0.00053698,120]
[349064870,1736956305411,-500.0,0.00053698,120]
[349064871,1736956305422,-741.05,0.00053698,120]
[349064872,1736956305435,-506.99805972,0.00053698,120]
[349064873,1736956305448,-500.0,0.00053698,120]
[349064874,1736956305460,-579.96,0.00053698,120]
[349064875,1736956305473,-500.0,0.00053698,120]
[349064876,1736956305485,-1069.07,0.00053698,120]
[349064877,1736956305498,-500.0,0.00053698,120]
[349064878,1736956305511,-500.0,0.00053698,120]
[349064879,1736956305522,-500.0,0.00053698,120]
[349064880,1736956305537,-500.0,0.00053698,120]
[349064881,1736956305548,-500.0,0.00053698,120]
[349064882,1736956305562,-500.0,0.00053698,120]
[349064883,1736956305575,-500.0,0.00053698,120]
[349064884,1736956305586,-500.0,0.00053698,120]
[349064885,1736956305598,-500.0,0.00053698,120]
[349064886,1736956305611,-500.0,0.00053698,120]
[349064887,1736956305623,-500.0,0.00053698,120]
[349064888,1736956305636,-500.0,0.00053698,120]
[349064889,1736956305648,-500.0,0.00053698,120]
[349064890,1736956305659,-500.0,0.00053698,120]
[349064891,1736956305672,-500.0,0.00053698,120]
[349064892,1736956305684,-500.0,0.00053698,120]
[349064893,1736956305696,-500.0,0.00053698,120]
[349064894,1736956305707,-500.0,0.00053698,120]
[349064895,1736956305721,-863.42,0.00053698,120]
[349064896,1736956305736,-500.0,0.00053698,120]
[349064897,1736956305749,-151.0,0.00053698,120]
[349064898,1736956305762,-500.0,0.00053698,120]
[349064899,1736956305775,-500.0,0.00053698,120]
[349064900,1736956305787,-320.77752743,0.00053698,120]
[349064901,1736956305799,-500.0,0.00053698,120]
[349064902,1736956305814,-500.0,0.00053698,120]
[349064903,1736956305826,-500.0,0.00053698,120]
[349064904,1736956305838,-508.43258962,0.00053698,120]
[349064905,1736956305852,-567.46,0.00053698,120]
[349064906,1736956305864,-151.0,0.00053698,120]
[349064907,1736956305877,-500.0,0.00053698,120]
[349064908,1736956305890,-500.0,0.00053698,120]
[349064909,1736956305902,-1088.39,0.00053698,120]
[349064910,1736956305914,-500.0,0.00053698,120]
[349064911,1736956305926,-500.0,0.00053698,120]
[349064912,1736956305938,-500.0,0.00053698,120]
[349064913,1736956305950,-500.0,0.00053698,120]
[349064914,1736956305961,-500.0,0.00053698,120]
[349064915,1736956305975,-500.0,0.00053698,120]
[349064916,1736956305986,-545.48,0.00053698,120]
[349064917,1736956306000,-830.22,0.00053698,120]
[349064918,1736956306014,-516.47,0.00053698,120]
[349064919,1736956306029,-500.0,0.00053698,120]
[349064920,1736956306042,-1750.92,0.00053698,120]
[349064921,1736956306055,-500.0,0.00053698,120]
[349064922,1736956306069,-500.0,0.00053698,120]
[349064923,1736956306082,-500.0,0.00053698,120]
[349064924,1736956306095,-500.0,0.00053698,120]
[349064925,1736956306109,-1151.99,0.00053698,120]
[349064926,1736956306122,-630.74253525,0.00053698,120]
[349064927,1736956306135,-808.52,0.00053698,120]
[349064928,1736956306148,-424.74066195,0.00053698,120]
[349064929,1736956306162,-833.16,0.00053698,120]
[349064930,1736956306175,-655.47,0.00053698,120]
[349064931,1736956306188,-500.0,0.00053698,120]
[349064932,1736956306202,-588.11,0.00053698,120]
[349064933,1736956306215,-286.49317652,0.00053698,120]
[349064934,1736956306235,-1411.41,0.00053698,120]
[349064935,1736956306248,-500.0,0.00053698,120]
[349064936,1736956306261,-500.0,0.00053698,120]
[349064937,1736956306274,-151.0,0.00053698,120]
[349064938,1736956306288,-2335.74,0.00053698,120]
[349064939,1736956306302,-500.0,0.00053698,120]
[349064940,1736956306316,-845.91,0.00053698,120]
[349064941,1736956306330,-643.15,0.00053698,120]
[349064942,1736956306343,-504.76302848,0.00053698,120]
[349064943,1736956306355,-500.0,0.00053698,120]
[349064944,1736956306368,-1811.92,0.00053698,120]
[349064945,1736956306381,-1514.03,0.00053698,120]
[349064946,1736956306395,-875.7,0.00053698,120]
[349064947,1736956306409,-500.0,0.00053698,120]
[349064948,1736956306423,-500.0,0.00053698,120]
[349064949,1736956306439,-500.0,0.00053698,120]
[349064950,1736956306453,-500.0,0.00053698,120]
[349064951,1736956306747,-500.0,0.00053698,120]
[349064952,1736956306770,-500.0,0.00053698,120]
[349064953,1736956306780,-500.0,0.00053698,120]
[349064954,1736956306792,-1833.32,0.00053698,120]
[349064955,1736956306802,-818.95,0.00053698,120]
[349064956,1736956306812,-500.0,0.00053698,120]
[349064957,1736956306821,-870.98,0.00053698,120]
[349064958,1736956306831,-500.0,0.00053698,120]
[349064959,1736956306842,-1571.26,0.00053698,120]
[349064960,1736956306852,-729.88,0.00053698,120]
[349064961,1736956306861,-500.0,0.00053698,120]
[349064962,1736956306871,-576.45,0.00053698,120]
[349064963,1736956306881,-1295.82,0.00053698,120]
[349064964,1736956306891,-1224.547525,0.00053698,120]
[349064965,1736956306901,-536.01630576,0.00053698,120]
[349064966,1736956306911,-500.0,0.00053698,120]
[349064967,1736956306921,-500.0,0.00053698,120]
[349064968,1736956306931,-500.0,0.00053698,120]
[349064969,1736956306942,-1631.23,0.00053698,120]
[349064970,1736956306953,-1224.547525,0.00053698,120]
[349064971,1736956306963,-500.0,0.00053698,120]
[349064972,1736956306975,-500.0,0.00053698,120]
[349064973,1736956306986,-500.0,0.00053698,120]
[349064974,1736956306995,-605.55,0.00053698,120]
[349064975,1736956307005,-949.32,0.00053698,120]
[349064976,1736956307015,-500.0,0.00053698,120]
[349064977,1736956307025,-581.98,0.00053698,120]
[349064978,1736956307035,-1230.43,0.00053698,120]
[349064979,1736956307044,-500.0,0.00053698,120]
[349064980,1736956307054,-2929.59,0.00053698,120]
[349064981,1736956307064,-1262.49,0.00053698,120]
[349064982,1736956307073,-820.14,0.00053698,120]
[349064983,1736956307082,-604.89,0.00053698,120]
[349064984,1736956307092,-500.0,0.00053698,120]
[349064985,1736956307102,-500.0,0.00053698,120]
[349064986,1736956307111,-1949.77,0.00053698,120]
[349064987,1736956307120,-500.0,0.00053698,7]
[349064988,1736956307131,-500.0,0.00053698,120]
[349064989,1736956307140,-598.53,0.00053698,120]
[349064990,1736956307150,-500.0,0.00053698,120]
[349064991,1736956307160,-500.0,0.00053698,120]
[349064992,1736956307171,-566.05,0.00053698,120]
[349064993,1736956307180,-500.0,0.00053698,120]
[349064994,1736956307190,-500.0,0.00053698,120]
[349064995,1736956307200,-635.19,0.00053698,120]
[349064996,1736956307210,-500.0,0.00053698,120]
[349064997,1736956307222,-2191.36,0.00053698,120]
[349064998,1736956307232,-500.0,0.00053698,120]
[349064999,1736956307242,-304.0739696,0.00053698,120]
[349065000,1736956307259,-503.91806048,0.00053698,120]
[349065001,1736956307269,-744.0,0.00053698,120]
[349065002,1736956307280,-500.0,0.00053698,120]
[349065003,1736956307290,-500.0,0.00053698,120]
[349065004,1736956307299,-906.29,0.00053698,120]
[349065005,1736956307310,-504.73186092,0.00053698,120]
[349065006,1736956307321,-151.0,0.00053698,110]
[349065007,1736956307332,-4237.77,0.00053698,120]
[349065008,1736956307342,-500.0,0.00053698,120]
[349065009,1736956307353,-500.0,0.00053698,120]
[349065010,1736956307362,-500.0,0.00053698,120]
[349065011,1736956307371,-151.0,0.00053698,110]
[349065012,1736956307381,-912.14,0.00053698,120]
[349065013,1736956307390,-508.48853709,0.00053698,120]
[349065014,1736956307400,-500.0,0.00053698,120]
[349065015,1736956307409,-1368.88,0.00053698,120]
[349065016,1736956307419,-1706.89,0.00053698,120]
[349065017,1736956307428,-1000.0,0.00053698,120]
[349065018,1736956307438,-918.62,0.00053698,120]
[349065019,1736956307447,-1734.94,0.00053698,120]
[349065020,1736956307457,-500.0,0.00053698,120]
[349065021,1736956307467,-500.0,0.00053698,120]
[349065022,1736956307480,-2711.34,0.00053698,120]
[349065023,1736956307489,-1192.56,0.00053698,120]
[349065024,1736956307499,-500.0,0.00053698,120]
[349065025,1736956307508,-823.64,0.00053698,120]
[349065026,1736956307517,-945.57,0.00053698,120]
[349065027,1736956307527,-686.03,0.00053698,120]
[349065028,1736956307537,-604.81833411,0.00053698,120]
[349065029,1736956307546,-500.0,0.00053698,120]
[349065030,1736956307555,-1841.61,0.00053698,120]
[349065031,1736956307565,-500.0,0.00053698,120]
[349065032,1736956307574,-751.34,0.00053698,120]
[349065033,1736956307584,-500.0,0.00053698,120]
[349065034,1736956307595,-702.95,0.00053698,120]
[349065035,1736956307604,-931.44,0.00053698,120]
[349065036,1736956307614,-1001.04,0.00053698,120]
[349065037,1736956307623,-3022.65,0.00053698,2]
[349065038,1736956307633,-500.0,0.00053698,120]
[349065039,1736956307643,-1356.86,0.00053698,120]
[349065040,1736956307653,-1183.26,0.00053698,120]
[349065041,1736956307663,-1246.12,0.00053698,120]
[349065042,1736956307673,-755.66,0.00053698,120]
[349065043,1736956307685,-1984.29,0.00053698,120]
[349065044,1736956307696,-820.04,0.00053698,120]
[349065045,1736956307706,-894.5,0.00053698,120]
[349065046,1736956307717,-520.83,0.00053698,120]
[349065047,1736956307729,-1558.7,0.00053698,120]
[349065048,1736956307739,-520.43,0.00053698,120]
[349065049,1736956307749,-1821.33,0.00053698,120]
[349065050,1736956307765,-2247.77,0.00053698,120]
[349065051,1736956307776,-500.0,0.00053698,120]
[349065052,1736956307786,-439.4528138,0.00053698,120]
[349065053,1736956307797,-1132.68,0.00053698,120]
[349065054,1736956307807,-779.1,0.00053698,120]
[349065055,1736956307816,-500.0,0.00053698,120]
[349065056,1736956307826,-500.0,0.00053698,120]
[349065057,1736956307837,-500.0,0.00053698,120]
[349065058,1736956307846,-500.0,0.00053698,120]
[349065059,1736956307855,-740.68,0.00053698,120]
[349065060,1736956307865,-500.0,0.00053698,120]
[349065061,1736956307874,-1291.55,0.00053698,120]
[349065062,1736956307884,-500.0,0.00053698,120]
[349065063,1736956307894,-500.0,0.00053698,120]
[349065064,1736956307904,-500.0,0.00053698,120]
[349065065,1736956307914,-500.0,0.00053698,120]
[349065066,1736956307924,-1339.34,0.00053698,120]
[349065067,1736956307933,-373.67188855,0.00053698,120]
[349065068,1736956307942,-500.0,0.00053698,120]
[349065069,1736956307952,-798.98,0.00053698,120]
[349065070,1736956307962,-1557.71,0.00053698,120]
[349065071,1736956307973,-1817.75,0.00053698,120]
[349065072,1736956307983,-200.54384339,0.00053698,120]
[349065073,1736956307994,-500.0,0.00053698,120]
[349065074,1736956308004,-500.0,0.00053698,120]
[349065075,1736956308013,-3637.12,0.00053698,30]
[349065076,1736956308023,-500.0,0.00053698,120]
[349065077,1736956308033,-2872.55,0.00053698,120]
[349065078,1736956308043,-829.27,0.00053698,120]
[349065079,1736956308053,-1000.0,0.00053698,120]
[349065080,1736956308063,-2750.24,0.00053698,90]
[349065081,1736956308073,-1310.61,0.00053698,120]
[349065082,1736956308084,-500.0,0.00053698,120]
[349065083,1736956308094,-642.58,0.00053698,120]
[349065084,1736956308104,-2341.21,0.00053698,120]
[349065085,1736956308115,-500.0,0.00053698,120]
[349065086,1736956308125,-706.15,0.00053698,120]
[349065087,1736956308136,-501.77490765,0.00053698,120]
[349065088,1736956308146,-500.0,0.00053698,120]
[349065089,1736956308156,-1041.56,0.00053698,120]
[349065090,1736956308166,-500.0,0.00053698,120]
[349065091,1736956308176,-500.0,0.00053698,120]
[349065092,1736956308186,-500.0,0.00053698,120]
[349065093,1736956308196,-500.0,0.00053698,120]
[349065094,1736956308206,-3227.41,0.00053698,120]
[349065095,1736956308216,-500.0,0.00053698,120]
[349065096,1736956308226,-500.0,0.00053698,120]
[349065097,1736956308236,-1148.7,0.00053698,120]
[349065098,1736956308246,-1179.9,0.00053698,120]
[349065099,1736956308257,-500.0,0.00053698,120]
[349065100,1736956308267,-500.0,0.00053698,120]
[349065101,1736956308277,-500.0,0.00053698,120]
[349065102,1736956308287,-500.0,0.00053698,120]
[349065103,1736956308298,-534.35,0.00053698,120]
[349065104,1736956308307,-500.0,0.00053698,120]
[349065105,1736956308316,-500.0,0.00053698,120]
[349065106,1736956308326,-500.0,0.00053698,120]
[349065107,1736956308337,-778.85,0.00053698,120]
[349065108,1736956308347,-806.4,0.00053698,120]
[349065109,1736956308358,-1518.02,0.00053698,120]
[349065110,1736956308369,-509.62,0.00053698,120]
[349065111,1736956308380,-500.0,0.00053698,120]
[349065112,1736956308390,-500.0,0.00053698,120]
[349065113,1736956308401,-500.0,0.00053698,120]
[349065114,1736956308412,-500.0,0.00053698,120]
[349065115,1736956308423,-644.08,0.00053698,120]
[349065116,1736956308433,-506.05401608,0.00053698,120]
[349065117,1736956308442,-1713.52,0.00053698,120]
[349065118,1736956308452,-500.0,0.00053698,2]
[349065119,1736956308463,-521.75,0.00053698,120]
[349065120,1736956308475,-197.23774062,0.00053698,120]
[349065121,1736956308486,-500.0,0.00053698,120]
[349065122,1736956308498,-1191.65,0.00053698,120]
[349065123,1736956308508,-500.0,0.00053698,120]
[349065124,1736956308518,-500.0,0.00053698,30]
[349065125,1736956308528,-3167.13,0.00053698,120]
[349065126,1736956308539,-500.0,0.00053698,120]
[349065127,1736956308551,-1915.01,0.00053698,120]
[349065128,1736956308563,-500.0,0.00053698,120]
[349065129,1736956308573,-386.46431787,0.00053698,120]
[349065130,1736956308583,-2872.11,0.00053698,120]
[349065131,1736956308593,-814.94,0.00053698,120]
[349065132,1736956308603,-500.0,0.00053698,120]
[349065133,1736956308614,-1905.0,0.00053698,120]
[349065134,1736956308625,-625.0,0.00053698,120]
[349065135,1736956308635,-510.06,0.00053698,120]
[349065136,1736956308647,-1608.41,0.00053698,120]
[349065137,1736956308657,-500.0,0.00053698,120]
[349065138,1736956308668,-849.44,0.00053698,120]
[349065139,1736956308679,-500.0,0.00053698,120]
[349065140,1736956308690,-500.0,0.00053698,120]
[349065141,1736956308701,-769.37,0.00053698,120]
[349065142,1736956308711,-500.0,0.00053698,120]
[349065143,1736956308723,-500.0,0.00053698,120]
[349065144,1736956308734,-645.83,0.00053698,120]
[349065145,1736956308745,-500.0,0.00053698,120]
[349065146,1736956308757,-500.0,0.00053698,120]
[349065147,1736956308768,-2038.04,0.00053698,120]
[349065148,1736956308779,-500.0,0.00053698,120]
[349065149,1736956308789,-611.36,0.00053698,120]
[349065150,1736956308800,-500.0,0.00053698,120]
[349065151,1736956308811,-500.0,0.00053698,120]
[349065152,1736956308821,-606.95,0.00053698,120]
[349065153,1736956308833,-176.86666667,0.00053781,120]
[349065154,1736956308843,-2035.72818657,0.00053789,120]
[349065155,1736956308853,-151.011408,0.00053798,120]
[349065156,1736956308864,-3000.0,0.000538,20]
[349065157,1736956308875,-5000.0,0.0005389,30]
[349065158,1736956308885,-151.0,0.00053945,120]
[349065159,1736956308895,-500.0,0.00053972,120]
[349065160,1736956308905,-639.81,0.00053972,120]
[349065161,1736956308915,-500.0,0.00053972,120]
[349065162,1736956308926,-500.0,0.00053972,120]
[349065163,1736956308937,-500.0,0.00053972,120]
[349065164,1736956308947,-568.61,0.00053972,120]
[349065165,1736956308960,-500.0,0.00053972,120]
[349065166,1736956308973,-601.56,0.00053972,120]
[349065167,1736956308984,-328.18384805,0.00053972,120]
[349065168,1736956308995,-500.0,0.00053972,120]
[349065169,1736956309006,-500.0,0.00053972,120]
[349065170,1736956309017,-500.0,0.00053972,120]
[349065171,1736956309027,-616.08722685,0.00053972,120]
[349065172,1736956309037,-500.0,0.00053972,120]
[349065173,1736956309047,-171.47957221,0.00053972,120]
[349065174,1736956309058,-257.6899993,0.00053972,120]
[349065175,1736956309069,-500.0,0.00053972,120]
[349065176,1736956309079,-450.70621382,0.00053972,120]
[349065177,1736956309089,-500.0,0.00053972,120]
[349065178,1736956309100,-500.0,0.00053972,120]
[349065179,1736956309110,-500.0,0.00053972,120]
[349065180,1736956309121,-441.10807681,0.00053972,120]
[349065181,1736956309132,-500.0,0.00053972,2]
[349065182,1736956309142,-500.0,0.00053972,120]
[349065183,1736956309152,-1200.0,0.00053972,2]
[349065184,1736956309163,-500.0,0.00053972,120]
[349065185,1736956309174,-500.0,0.00053972,120]
[349065186,1736956309185,-500.0,0.00053972,120]
[349065187,1736956309195,-500.0,0.00053972,120]
[349065188,1736956309206,-500.0,0.00053972,120]
[349065189,1736956309216,-500.0,0.00053972,120]
[349065190,1736956309227,-500.0,0.00053972,120]
[349065191,1736956309237,-500.0,0.00053972,120]
[349065192,1736956309247,-500.0,0.00053972,120]
[349065193,1736956309258,-335.1720836,0.00053972,120]
[349065194,1736956309269,-500.0,0.00053972,120]
[349065195,1736956309279,-500.0,0.00053972,120]
[349065196,1736956309289,-500.0,0.00053972,120]
[349065197,1736956309299,-500.0,0.00053972,120]
[349065198,1736956309308,-624.3215952,0.00053972,120]
[349065199,1736956309318,-500.0,0.00053972,120]
[349065200,1736956309328,-500.0,0.00053972,120]
[349065201,1736956309337,-500.0,0.00053972,120]
[349065202,1736956309348,-500.0,0.00053972,120]
[349065203,1736956309358,-500.0,0.00053972,120]
[349065204,1736956309368,-500.0,0.00053972,120]
[349065205,1736956309379,-500.0,0.00053972,60]
[349065206,1736956309389,-500.0,0.00053972,120]
[349065207,1736956309399,-500.0,0.00053972,120]
[349065208,1736956309409,-500.0,0.00053972,120]
[349065209,1736956309419,-500.0,0.00053972,120]
[349065210,1736956309429,-675.57,0.00053972,120]
[349065211,1736956309438,-500.0,0.00053972,120]
[349065212,1736956309449,-500.0,0.00053972,30]
[349065213,1736956309459,-712.55,0.00053972,120]
[349065214,1736956309470,-281.38,0.00053972,120]
[349065215,1736956309483,-520.78,0.00053972,120]
[349065216,1736956309494,-500.0,0.00053972,120]
[349065217,1736956309505,-500.0,0.00053972,120]
[349065218,1736956309516,-500.0,0.00053972,120]
[349065219,1736956309527,-500.0,0.00053972,120]
[349065220,1736956309538,-507.73,0.00053972,120]
[349065221,1736956309548,-500.0,0.00053972,120]
[349065222,1736956309558,-795.66,0.00053972,120]
[349065223,1736956309568,-635.12,0.00053972,120]
[349065224,1736956309578,-500.0,0.00053972,120]
[349065225,1736956309590,-500.0,0.00053972,120]
[349065226,1736956309600,-500.0,0.00053972,120]
[349065227,1736956309611,-583.33,0.00053972,120]
[349065228,1736956309621,-500.0,0.00053972,120]
[349065229,1736956309631,-500.0,0.00053972,120]
[349065230,1736956309641,-757.79,0.00053972,120]
[349065231,1736956309651,-500.0,0.00053972,120]
[349065232,1736956309661,-500.0,0.00053972,120]
[349065233,1736956309671,-500.0,0.00053972,120]
[349065234,1736956309682,-500.0,0.00053972,120]
[349065235,1736956309694,-500.0,0.00053972,120]
[349065236,1736956309705,-500.0,0.00053972,120]
[349065237,1736956309716,-500.0,0.00053972,120]
[349065238,1736956309728,-500.0,0.00053972,120]
[349065239,1736956309739,-500.0,0.00053972,120]
[349065240,1736956309750,-500.0,0.00053972,120]
[349065241,1736956309763,-500.0,0.00053972,120]
[349065242,1736956309774,-500.0,0.00053972,120]
[349065243,1736956309784,-500.0,0.00053972,120]
[349065244,1736956309795,-620.49,0.00053972,120]
[349065245,1736956309805,-500.0,0.00053972,120]
[349065246,1736956309815,-694.0,0.00053972,30]
[349065247,1736956309825,-693.57,0.00053972,120]
[349065248,1736956309836,-500.0,0.00053972,120]
[349065249,1736956309848,-910.12,0.00053972,120]
[349065250,1736956309857,-500.0,0.00053972,120]
[349065251,1736956309867,-500.0,0.00053972,120]
[349065252,1736956309878,-596.95,0.00053972,2]
[349065253,1736956309889,-500.0,0.00053972,120]
[349065254,1736956309900,-500.0,0.00053972,120]
[349065255,1736956309911,-500.0,0.00053972,120]
[349065256,1736956309922,-395.77156266,0.00053972,120]
[349065257,1736956309933,-651.96,0.00053972,120]
[349065258,1736956309944,-541.66,0.00053972,120]
[349065259,1736956309955,-823.64,0.00053972,120]
[349065260,1736956309966,-500.0,0.00053972,2]
[349065261,1736956309978,-500.0,0.00053972,120]
[349065262,1736956309988,-500.0,0.00053972,120]
[349065263,1736956309999,-500.0,0.00053972,120]
[349065264,1736956310208,-991.22,0.00053972,120]
[349065265,1736956310218,-500.0,0.00053972,120]
[349065266,1736956310232,-500.0,0.00053972,120]
[349065267,1736956310242,-500.0,0.00053972,120]
[349065268,1736956310252,-506.68015974,0.00053972,120]
[349065269,1736956310264,-500.0,0.00053972,120]
[349065270,1736956310275,-500.0,0.00053972,30]
[349065271,1736956310284,-500.0,0.00053972,120]
[349065272,1736956310295,-500.0,0.00053972,120]
[349065273,1736956310306,-500.0,0.00053972,120]
[349065274,1736956310316,-300.77328314,0.00053972,120]
[349065275,1736956310327,-500.0,0.00053972,120]
[349065276,1736956310337,-713.8,0.00053972,120]
[349065277,1736956310348,-500.0,0.00053972,120]
[349065278,1736956310358,-153.07725706,0.00053972,120]
[349065279,1736956310368,-218.10824312,0.00053972,120]
[349065280,1736956310379,-500.0,0.00053972,120]
[349065281,1736956310388,-500.0,0.00053972,120]
[349065282,1736956310399,-520.83,0.00053972,120]
[349065283,1736956310409,-500.0,0.00053972,120]
[349065284,1736956310419,-500.0,0.00053972,120]
[349065285,1736956310429,-683.22,0.00053972,120]
[349065286,1736956310440,-500.0,0.00053972,120]
[349065287,1736956310450,-500.0,0.00053972,120]
[349065288,1736956310460,-500.0,0.00053972,120]
[349065289,1736956310470,-500.0,0.00053972,120]
[349065290,1736956310483,-603.27591782,0.00053972,120]
[349065291,1736956310493,-500.0,0.00053972,120]
[349065292,1736956310503,-953.68,0.00053972,120]
[349065293,1736956310513,-500.0,0.00053972,120]
[349065294,1736956310523,-500.0,0.00053972,120]
[349065295,1736956310533,-500.0,0.00053972,120]
[349065296,1736956310544,-500.0,0.00053972,120]
[349065297,1736956310554,-542.48,0.00053972,120]
[349065298,1736956310565,-500.0,0.00053972,120]
[349065299,1736956310575,-500.0,0.00053972,120]
[349065300,1736956310585,-500.0,0.00053972,120]
[349065301,1736956310595,-500.0,0.00053972,120]
[349065302,1736956310605,-500.0,0.00053972,120]
[349065303,1736956310615,-1078.53,0.00053972,120]
[349065304,1736956310625,-786.0,0.00053972,120]
[349065305,1736956310634,-572.43177944,0.00053972,120]
[349065306,1736956310644,-500.0,0.00053972,120]
[349065307,1736956310655,-500.0,0.00053972,120]
[349065308,1736956310666,-518.48865109,0.00053972,120]
[349065309,1736956310677,-500.0,0.00053972,120]
[349065310,1736956310687,-500.0,0.00053972,120]
[349065311,1736956310698,-776.98,0.00053972,120]
[349065312,1736956310709,-500.0,0.00053972,120]
[349065313,1736956310719,-500.0,0.00053972,120]